fUST/lending_fUST_20250606
["ID","MTS","AMOUNT","RATE_DAILY","PERIOD"]
[364706081,1749213048584,-875.22,0.00020821,2]
[364706083,1749213048597,-444.9,0.00020821,2]
[364706085,1749213048609,-440.0,0.00020821,2]
[364706086,1749213048619,-440.0,0.00020821,2]
[364706088,1749213048631,-440.0,0.00020821,2]
[364706090,1749213048641,-440.0,0.00020821,2]
[364706091,1749213048651,-440.0,0.00020821,2]
[364706093,1749213048662,-440.0,0.00020821,2]
[364706095,1749213048673,-505.29,0.00020821,2]
[364706096,1749213048682,-440.0,0.00020821,2]
[364706098,1749213048692,-440.0,0.00020821,2]
[364706100,1749213048701,-380.0,0.00020821,2]
[364706101,1749213048710,-440.0,0.00020821,2]
[364706103,1749213048720,-440.0,0.00020821,2]
[364706104,1749213048730,-745.08,0.00020821,2]
[364706106,1749213048739,-440.0,0.00020821,2]
[364706108,1749213048749,-2205.3,0.00020821,2]
[364706110,1749213048759,-440.0,0.00020821,2]
[364706111,1749213048772,-440.0,0.00020821,2]
[364706113,1749213048782,-1464.36,0.00020821,2]
[364706115,1749213048791,-440.0,0.00020821,2]
[364706116,1749213048801,-440.0,0.00020821,2]
[364706118,1749213048811,-440.0,0.00020821,2]
[364706119,1749213048821,-1629.33,0.00020821,2]
[364706121,1749213048831,-3035.51,0.00020821,2]
[364706123,1749213048841,-526.85,0.00020821,2]
[364706125,1749213048852,-599.08,0.00020821,2]
[364706126,1749213048862,-440.0,0.00020821,2]
[364706128,1749213048871,-633.0,0.00020821,2]
[364706129,1749213048880,-440.0,0.00020821,2]
[364706131,1749213048891,-440.0,0.00020821,2]
[364706133,1749213048900,-440.0,0.00020821,2]
[364706134,1749213048910,-742.14,0.00020821,2]
[364706136,1749213048919,-440.0,0.00020821,2]
[364706138,1749213048929,-440.0,0.00020821,2]
[364706140,1749213048939,-486.52078024,0.00020821,2]
[364706141,1749213048949,-1055.7,0.00020821,2]
[364706143,1749213048958,-440.0,0.00020821,2]
[364706144,1749213048967,-440.0,0.00020821,2]
[364706146,1749213048976,-1101.47,0.00020821,2]
[364706148,1749213048986,-440.0,0.00020821,2]
[364706150,1749213048995,-440.0,0.00020821,2]
[364706151,1749213049005,-453.26,0.00020821,2]
[364706153,1749213049016,-463.99,0.00020821,2]
[364706155,1749213049026,-440.0,0.00020821,2]
[364706156,1749213049035,-4644.77,0.00020821,2]
[364706158,1749213049045,-440.0,0.00020821,2]
[364706160,1749213049054,-440.0,0.00020821,2]
[364706162,1749213049064,-450.0,0.00020821,2]
[364706163,1749213049073,-440.0,0.00020821,2]
[364706165,1749213049082,-440.0,0.00020821,2]
[364706166,1749213049092,-440.0,0.00020821,2]
[364706168,1749213049102,-440.0,0.00020821,2]
[364706170,1749213049111,-503.93,0.00020821,2]
[364706172,1749213049121,-390.0,0.00020821,2]
[364706174,1749213049130,-440.0,0.00020821,2]
[364706175,1749213049140,-759.25,0.00020821,2]
[364706177,1749213049149,-440.0,0.00020821,2]
[364706179,1749213049159,-819.71,0.00020821,2]
[364706181,1749213049168,-440.0,0.00020821,2]
[364706182,1749213049179,-944.35,0.00020821,2]
[364706184,1749213049188,-440.0,0.00020821,2]
[364706186,1749213049198,-440.0,0.00020821,2]
[364706188,1749213049208,-440.0,0.00020821,2]
[364706189,1749213049218,-440.0,0.00020821,2]
[364706191,1749213049228,-440.0,0.00020821,2]
[364706193,1749213049238,-370.0,0.00020821,2]
[364706194,1749213049247,-440.0,0.00020821,2]
[364706196,1749213049256,-440.0,0.00020821,2]
[364706198,1749213049271,-1034.83,0.00020821,2]
[364706200,1749213049280,-440.0,0.00020821,2]
[364706201,1749213049290,-440.0,0.00020821,2]
[364706203,1749213049300,-440.0,0.00020821,2]
[364706205,1749213049310,-857.67,0.00020821,2]
[364706207,1749213049320,-440.0,0.00020821,2]
[364706208,1749213049329,-440.0,0.00020821,2]
[364706210,1749213049338,-3064.33,0.00020821,2]
[364706211,1749213049348,-440.0,0.00020821,2]
[364706213,1749213049357,-440.0,0.00020821,2]
[364706215,1749213049367,-440.0,0.00020821,2]
[364706216,1749213049376,-1856.01,0.00020821,2]
[364706218,1749213049387,-440.0,0.00020821,2]
[364706220,1749213049397,-440.0,0.00020821,2]
[364706222,1749213049407,-500.0,0.0002084,2]
[364706223,1749213049417,-500.0,0.0002084,2]
[364706225,1749213049427,-420.0,0.00020893,2]
[364706227,1749213049437,-151.0,0.000209,3]
[364706229,1749213049447,-500.0,0.00020966,2]
[364706230,1749213049456,-2904.3218691,0.00020969,4]
[364706232,1749213049466,-440.0,0.00021095,2]
[364706234,1749213049476,-522.9,0.00021095,3]
[364706236,1749213049485,-445.46,0.00021095,2]
[364706237,1749213049494,-440.0,0.00021095,2]
[364706239,1749213049504,-875.22,0.00021095,2]
[364706241,1749213049518,-444.9,0.00021095,2]
[364706243,1749213049528,-440.0,0.00021095,2]
[364706244,1749213049537,-440.86799031,0.00021095,2]
[364706246,1749213049548,-440.0,0.00021095,2]
[364706248,1749213049558,-440.0,0.00021095,2]
[364706250,1749213049567,-181.486605,0.00021095,2]
[364706252,1749213049576,-440.0,0.00021095,2]
[364706253,1749213049585,-505.29,0.00021095,2]
[364706255,1749213049598,-440.0,0.00021095,2]
[364706257,1749213049607,-289.78811078,0.00021095,2]
[364706259,1749213049617,-440.0,0.00021095,2]
[364706260,1749213049626,-440.0,0.00021095,2]
[364706262,1749213049637,-745.08,0.00021095,2]
[364706264,1749213049647,-440.0,0.00021095,2]
[364706266,1749213049656,-2205.3,0.00021095,2]
[364706268,1749213049665,-440.0,0.00021095,2]
[364706269,1749213049675,-440.0,0.00021095,2]
[364706271,1749213049684,-1464.36,0.00021095,2]
[364706273,1749213049694,-440.0,0.00021095,2]
[364706275,1749213049704,-440.0,0.00021095,2]
[364706276,1749213049713,-440.0,0.00021095,2]
[364706278,1749213049723,-1629.33,0.00021095,2]
[364706280,1749213049732,-3035.51,0.00021095,2]
[364706282,1749213049743,-526.85,0.00021095,2]
[364706284,1749213049752,-599.08,0.00021095,2]
[364706285,1749213049762,-384.92835629,0.00021095,2]
[364706287,1749213049776,-633.0,0.00021095,2]
[364706289,1749213049785,-440.0,0.00021095,2]
[364706291,1749213049795,-440.0,0.00021095,2]
[364706292,1749213049804,-440.0,0.00021095,2]
[364706294,1749213049813,-742.14,0.00021095,2]
[364706296,1749213049822,-440.0,0.00021095,2]
[364706298,1749213049832,-440.0,0.00021095,2]
[364706299,1749213049842,-1055.7,0.00021095,2]
[364706301,1749213049852,-440.0,0.00021095,2]
[364706303,1749213049862,-360.0,0.00021095,2]
[364706305,1749213049872,-1101.47,0.00021095,2]
[364706307,1749213049882,-440.0,0.00021095,2]
[364706308,1749213049891,-440.0,0.00021095,2]
[364706310,1749213049900,-453.26,0.00021095,2]
[364706312,1749213049909,-463.99,0.00021095,2]
[364706314,1749213049919,-440.0,0.00021095,2]
[364706315,1749213049928,-4644.77,0.00021095,2]
[364706317,1749213049938,-440.0,0.00021095,2]
[364706319,1749213049948,-440.0,0.00021095,2]
[364706321,1749213049957,-440.0,0.00021095,2]
[364706323,1749213049967,-440.0,0.00021095,2]
[364706324,1749213049976,-370.0,0.00021095,2]
[364706326,1749213049986,-503.93,0.00021095,2]
[364706328,1749213049996,-440.0,0.00021095,2]
[364706330,1749213050005,-759.25,0.00021095,2]
[364706331,1749213050017,-360.0,0.00021095,2]
[364706333,1749213050028,-819.71,0.00021095,2]
[364706335,1749213050037,-440.0,0.00021095,2]
[364706337,1749213050047,-944.35,0.00021095,2]
[364706339,1749213050057,-440.0,0.00021095,2]
[364706340,1749213050066,-440.0,0.00021095,2]
[364706342,1749213050077,-360.0,0.00021095,2]
[364706344,1749213050086,-440.0,0.00021095,2]
[364706346,1749213050096,-360.0,0.00021095,2]
[364706348,1749213050106,-171.07382944,0.00021095,2]
[364706349,1749213050115,-440.0,0.00021095,2]
[364706351,1749213050125,-1034.83,0.00021095,2]
[364706353,1749213050134,-440.0,0.00021095,2]
[364706355,1749213050143,-440.0,0.00021095,2]
[364706357,1749213050153,-440.0,0.00021095,2]
[364706359,1749213050163,-857.67,0.00021095,2]
[364706360,1749213050172,-440.0,0.00021095,2]
[364706362,1749213050181,-440.0,0.00021095,2]
[364706364,1749213050191,-3064.33,0.00021095,2]
[364706366,1749213050200,-440.0,0.00021095,2]
[364706368,1749213050210,-360.0,0.00021095,2]
[364706369,1749213050220,-440.0,0.00021095,2]
[364706371,1749213050230,-1856.01,0.00021095,2]
[364706373,1749213050240,-440.0,0.00021095,2]
[364706374,1749213050250,-440.0,0.00021095,2]
[364706376,1749213050259,-2030.71407287,0.00021176,4]
[364706393,1749213050454,150.0,0.00017959,2]
[364706396,1749213050480,168.98,0.00018814,2]
[364706408,1749213050607,487.22997763,0.00018603,2]
[364706412,1749213050646,-440.0,0.00019178,2]
[364706413,1749213050656,-430.65324588,0.00019178,2]
[364706415,1749213050666,-160.03003315,0.00019178,2]
[364706417,1749213050676,-440.0,0.00019178,2]
[364706419,1749213050686,-440.0,0.00019452,2]
[364706421,1749213050695,-253.47,0.00019669,2]
[364706422,1749213050705,-337.96,0.00020524,2]
[364706424,1749213050715,-561.57580389,0.00020555,3]
[364706426,1749213050724,-11849.89752062,0.00020555,3]
[364706428,1749213050734,-873.60779623,0.00021176,4]
[364706430,1749213050743,-834.50537533,0.00021197,2]
[364706431,1749213050753,-160.0,0.00021197,2]
[364706433,1749213050763,-11849.89752062,0.00021197,2]
[364706435,1749213050774,-423.83542519,0.00021197,2]
[364706437,1749213050783,-160.0,0.00021197,2]
[364706439,1749213050792,-160.0,0.00021197,2]
[364706440,1749213050802,-842.5625,0.00021197,2]
[364706442,1749213050811,-229.52673067,0.00021197,2]
[364706444,1749213050821,-160.0,0.00021197,2]
[364706446,1749213050831,-212.976918,0.00021197,2]
[364706448,1749213050840,-160.0,0.00021197,2]
[364706450,1749213050851,-160.0,0.00021199,2]
[364706451,1749213050861,-160.0,0.00021199,2]
[364706453,1749213050870,-151.0,0.000212,3]
[364706455,1749213050880,-218.31238332,0.00021363,2]
[364706457,1749213050890,-445.46,0.00021369,2]
[364706459,1749213050899,-440.0,0.00021369,2]
[364706460,1749213050909,-875.22,0.00021369,2]
[364706462,1749213050919,-444.9,0.00021369,2]
[364706464,1749213050928,-440.0,0.00021369,2]
[364706466,1749213050937,-360.0,0.00021369,2]
[364706468,1749213050947,-360.0,0.00021369,2]
[364706470,1749213050957,-360.0,0.00021369,2]
[364706471,1749213050965,-505.29,0.00021369,2]
[364706473,1749213050975,-173.97937949,0.00021369,2]
[364706475,1749213050985,-370.0,0.00021369,2]
[364706477,1749213050994,-440.0,0.00021369,2]
[364706490,1749213051135,-745.08,0.00021369,2]
[364706492,1749213051145,-360.0,0.00021369,2]
[364706494,1749213051155,-2205.3,0.00021369,2]
[364706496,1749213051165,-440.0,0.00021369,2]
[364706498,1749213051174,-1464.36,0.00021369,2]
[364706501,1749213051184,-444.53,0.00021369,2]
[364706503,1749213051194,-360.0,0.00021369,2]
[364706505,1749213051203,-440.0,0.00021369,2]
[364706506,1749213051213,-1629.33,0.00021369,2]
[364706507,1749213051223,-3035.51,0.00021369,2]
[364706508,1749213051235,-526.85,0.00021369,2]
[364706509,1749213051246,-599.08,0.00021369,2]
[364706510,1749213051257,-633.0,0.00021369,2]
[364706511,1749213051269,-440.0,0.00021369,2]
[364706512,1749213051279,-360.0,0.00021369,2]
[364706513,1749213051289,-360.0,0.00021369,2]
[364706514,1749213051299,-742.14,0.00021369,2]
[364706515,1749213051309,-440.0,0.00021369,2]
[364706516,1749213051320,-350.0,0.00021369,2]
[364706517,1749213051329,-1055.7,0.00021369,2]
[364706518,1749213051339,-440.0,0.00021369,2]
[364706519,1749213051348,-1101.47,0.00021369,2]
[364706520,1749213051358,-440.0,0.00021369,2]
[364706521,1749213051368,-346.16496433,0.00021369,2]
[364706522,1749213051377,-453.26,0.00021369,2]
[364706523,1749213051387,-463.99,0.00021369,2]
[364706524,1749213051397,-505.18,0.00021369,2]
[364706525,1749213051407,-4644.77,0.00021369,2]
[364706526,1749213051417,-486.4,0.00021369,2]
[364706527,1749213051426,-360.0,0.00021369,2]
[364706528,1749213051436,-440.0,0.00021369,2]
[364706529,1749213051446,-440.0,0.00021369,2]
[364706530,1749213051455,-503.93,0.00021369,2]
[364706531,1749213051465,-360.0,0.00021369,2]
[364706532,1749213051475,-759.25,0.00021369,2]
[364706533,1749213051485,-819.71,0.00021369,2]
[364706534,1749213051496,-440.0,0.00021369,2]
[364706535,1749213051506,-944.35,0.00021369,2]
[364706536,1749213051517,-440.0,0.00021369,2]
[364706537,1749213051526,-440.0,0.00021369,2]
[364706538,1749213051536,-440.0,0.00021369,2]
[364706539,1749213051546,-360.0,0.00021369,2]
[364706540,1749213051555,-1034.83,0.00021369,2]
[364706541,1749213051566,-360.0,0.00021369,2]
[364706542,1749213051576,-440.0,0.00021369,2]
[364706543,1749213051586,-440.0,0.00021369,2]
[364706544,1749213051599,-857.67,0.00021369,2]
[364706545,1749213051609,-440.0,0.00021369,2]
[364706546,1749213051620,-440.0,0.00021369,2]
[364706547,1749213051629,-3064.33,0.00021369,2]
[364706548,1749213051640,-440.0,0.00021369,2]
[364706550,1749213051650,-368.18275156,0.00021369,2]
[364706551,1749213051660,-1856.01,0.00021369,2]
[364706552,1749213051671,-440.0,0.00021369,2]
[364706554,1749213051681,-440.0,0.00021369,2]
[364706555,1749213051691,-422.45,0.00021379,2]
[364706558,1749213051701,-2904.3218691,0.00021383,5]
[364706560,1749213051711,-151.0,0.000214,4]
[364706561,1749213051721,-2968.3,0.000215,2]
[364706564,1749213051731,-2968.3,0.000215,2]
[364706566,1749213051741,-2968.3,0.000215,2]
[364706567,1749213051751,-2968.3,0.000215,2]
[364706570,1749213051762,-587.0,0.00021551,2]
[364706572,1749213051775,-2904.3218691,0.0002159,5]
[364706574,1749213051785,-160.0,0.00021642,2]
[364706576,1749213051795,-445.46,0.00021643,2]
[364706578,1749213051804,-440.0,0.00021643,2]
[364706580,1749213051814,-875.22,0.00021643,2]
[364706582,1749213051824,-444.9,0.00021643,2]
[364706584,1749213051834,-440.0,0.00021643,2]
[364706586,1749213051844,-505.29,0.00021643,2]
[364706588,1749213051856,-440.0,0.00021643,2]
[364706590,1749213051867,-745.08,0.00021643,2]
[364706592,1749213051877,-2205.3,0.00021643,2]
[364706594,1749213051887,-440.0,0.00021643,2]
[364706596,1749213051897,-1464.36,0.00021643,2]
[364706598,1749213051907,-254.40370591,0.00021643,2]
[364706600,1749213051916,-1629.33,0.00021643,2]
[364706602,1749213051926,-3035.51,0.00021643,2]
[364706604,1749213051936,-526.85,0.00021643,2]
[364706606,1749213051946,-599.08,0.00021643,2]
[364706608,1749213051955,-633.0,0.00021643,2]
[364706610,1749213051965,-360.0,0.00021643,2]
[364706612,1749213051974,-742.14,0.00021643,2]
[364706614,1749213051984,-440.0,0.00021643,2]
[364706616,1749213051993,-1055.7,0.00021643,2]
[364706618,1749213052003,-321.4183723,0.00021643,2]
[364706620,1749213052013,-1101.47,0.00021643,2]
[364706622,1749213052026,-359.28298965,0.00021643,2]
[364706624,1749213052034,-453.26,0.00021643,2]
[364706626,1749213052045,-463.99,0.00021643,2]
[364706628,1749213052054,-4644.77,0.00021643,2]
[364706630,1749213052064,-440.0,0.00021643,2]
[364706632,1749213052074,-360.0,0.00021643,2]
[364706634,1749213052083,-503.93,0.00021643,2]
[364706636,1749213052093,-759.25,0.00021643,2]
[364706638,1749213052104,-819.71,0.00021643,2]
[364706640,1749213052113,-440.0,0.00021643,2]
[364706643,1749213052123,-944.35,0.00021643,2]
[364706645,1749213052132,-306.27922572,0.00021643,2]
[364706647,1749213052141,-422.84,0.00021643,2]
[364706649,1749213052150,-437.04,0.00021643,2]
[364706651,1749213052160,-1034.83,0.00021643,2]
[364706653,1749213052169,-440.0,0.00021643,2]
[364706655,1749213052178,-440.0,0.00021643,2]
[364706657,1749213052187,-857.67,0.00021643,2]
[364706659,1749213052197,-440.0,0.00021643,2]
[364706661,1749213052208,-440.0,0.00021643,2]
[364706663,1749213052217,-3064.33,0.00021643,2]
[364706665,1749213052226,-440.0,0.00021643,2]
[364706667,1749213052236,-1856.01,0.00021643,2]
[364706669,1749213052245,-440.0,0.00021643,2]
[364706671,1749213052254,-440.0,0.00021643,2]
[364706673,1749213052264,-2565.65018686,0.00021651,2]
[364706675,1749213052276,-900.0,0.00021679,2]
[364706677,1749213052285,-151.0,0.000217,4]
[364706679,1749213052294,-2904.3218691,0.00021797,6]
[364706681,1749213052303,-1695.74,0.000219,2]
[364706682,1749213052312,-22804.46,0.000219,2]
[364706685,1749213052322,-887.15,0.000219,2]
[364706687,1749213052331,-445.46,0.00021917,2]
[364706689,1749213052341,-440.0,0.00021917,2]
[364706691,1749213052350,-875.22,0.00021917,2]
[364706692,1749213052359,-444.9,0.00021917,2]
[364706695,1749213052369,-440.0,0.00021917,2]
[364706696,1749213052378,-505.29,0.00021917,2]
[364706698,1749213052387,-440.0,0.00021917,2]
[364706700,1749213052397,-745.08,0.00021917,2]
[364706702,1749213052407,-2205.3,0.00021917,2]
[364706704,1749213052416,-440.0,0.00021917,2]
[364706706,1749213052425,-1464.36,0.00021917,2]
[364706708,1749213052435,-1629.33,0.00021917,2]
[364706711,1749213052444,-3035.51,0.00021917,2]
[364706713,1749213052454,-526.85,0.00021917,2]
[364706714,1749213052463,-599.08,0.00021917,2]
[364706716,1749213052473,-633.0,0.00021917,2]
[364706719,1749213052482,-742.14,0.00021917,2]
[364706721,1749213052492,-440.0,0.00021917,2]
[364706723,1749213052502,-1055.7,0.00021917,2]
[364706724,1749213052512,-1101.47,0.00021917,2]
[364706727,1749213052523,-453.26,0.00021917,2]
[364706729,1749213052533,-463.99,0.00021917,2]
[364706731,1749213052542,-4644.77,0.00021917,2]
[364706733,1749213052552,-440.0,0.00021917,2]
[364706735,1749213052561,-503.93,0.00021917,2]
[364706737,1749213052571,-759.25,0.00021917,2]
[364706739,1749213052581,-819.71,0.00021917,2]
[364706741,1749213052593,-440.0,0.00021917,2]
[364706743,1749213052602,-944.35,0.00021917,2]
[364706745,1749213052613,-1034.83,0.00021917,2]
[364706747,1749213052623,-440.0,0.00021917,2]
[364706749,1749213052632,-440.0,0.00021917,2]
[364706751,1749213052642,-857.67,0.00021917,2]
[364706753,1749213052652,-440.0,0.00021917,2]
[364706755,1749213052662,-440.0,0.00021917,2]
[364706757,1749213052672,-3064.33,0.00021917,2]
[364706759,1749213052682,-440.0,0.00021917,2]
[364706761,1749213052691,-1856.01,0.00021917,2]
[364706763,1749213052701,-440.0,0.00021917,2]
[364706765,1749213052710,-440.0,0.00021917,2]
[364706767,1749213052720,-225.0,0.00022,2]
[364706769,1749213052729,-122337.82,0.00022,7]
[364706771,1749213052739,-212.976918,0.00022,7]
[364706773,1749213052748,-5364.40417707,0.00022,2]
[364706775,1749213052758,-11849.89752062,0.00022,7]
[364706777,1749213052769,-2904.3218691,0.00022003,6]
[364706779,1749213052779,-151.0,0.00022066,2]
[364706781,1749213052789,-151.47158686,0.00022066,2]
[364706783,1749213052799,-277.60077407,0.00022066,2]
[364706785,1749213052809,-1688.0,0.00022066,2]
[364706787,1749213052818,-500.0,0.00022066,2]
[364706788,1749213052827,-500.0,0.00022066,2]
[364706791,1749213052838,-500.0,0.00022066,2]
[364706793,1749213052847,-500.0,0.00022066,2]
[364706795,1749213052856,-500.0,0.00022066,2]
[364706797,1749213052866,-500.0,0.00022066,2]
[364706799,1749213052875,-500.0,0.00022066,2]
[364706801,1749213052884,-500.0,0.00022066,2]
[364706802,1749213052893,-500.0,0.00022066,2]
[364706804,1749213052902,-500.0,0.00022066,2]
[364706806,1749213052912,-500.0,0.00022066,2]
[364706809,1749213052921,-5000.0,0.00022066,2]
[364706811,1749213052930,-500.0,0.00022066,2]
[364706812,1749213052939,-500.0,0.00022066,2]
[364706815,1749213052949,-500.0,0.00022066,2]
[364706817,1749213052958,-500.0,0.00022066,2]
[364706819,1749213052967,-500.0,0.00022066,2]
[364706821,1749213052976,-500.0,0.00022066,2]
[364706823,1749213052986,-500.0,0.00022066,2]
[364706825,1749213052995,-500.0,0.00022066,2]
[364706827,1749213053004,-500.0,0.00022066,2]
[364706829,1749213053013,-500.0,0.00022066,2]
[364706831,1749213053024,-500.0,0.00022066,2]
[364706833,1749213053034,-500.0,0.00022066,2]
[364706835,1749213053043,-500.0,0.00022066,2]
[364706837,1749213053053,-500.0,0.00022066,2]
[364706839,1749213053062,-206.97749713,0.00022066,2]
[364706841,1749213053070,-500.0,0.00022066,2]
[364706842,1749213053079,-500.0,0.00022066,2]
[364706845,1749213053088,-500.0,0.00022066,2]
[364706846,1749213053097,-500.0,0.00022066,2]
[364706848,1749213053106,-500.0,0.00022066,2]
[364706850,1749213053115,-207.4,0.00022066,2]
[364706852,1749213053124,-1750.456,0.00022121,2]
[364706854,1749213053133,-218.31238332,0.00022124,2]
[364706856,1749213053142,-500.0,0.00022136,2]
[364706859,1749213053152,-501.5856008,0.00022136,2]
[364706861,1749213053161,-500.0,0.00022136,2]
[364706863,1749213053170,-240.18160444,0.00022136,2]
[364706865,1749213053179,-500.0,0.00022136,2]
[364706866,1749213053188,-502.86158718,0.00022136,2]
[364706867,1749213053197,-500.0,0.00022136,2]
[364706868,1749213053206,-500.0,0.00022136,2]
[364706869,1749213053216,-500.0,0.00022136,2]
[364706870,1749213053225,-600.0,0.00022136,2]
[364706871,1749213053234,-507.37303008,0.00022136,2]
[364706872,1749213053245,-500.0,0.00022136,2]
[364706873,1749213053255,-503.096271,0.00022136,2]
[364706874,1749213053264,-1815.222872,0.00022176,2]
[364706875,1749213053275,-445.46,0.00022191,2]
[364706876,1749213053285,-440.0,0.00022191,2]
[364706877,1749213053294,-875.22,0.00022191,2]
[364706878,1749213053304,-444.9,0.00022191,2]
[364706879,1749213053313,-440.0,0.00022191,2]
[364706880,1749213053323,-505.29,0.00022191,2]
[364706881,1749213053332,-440.0,0.00022191,2]
[364706882,1749213053342,-745.08,0.00022191,2]
[364706883,1749213053351,-2205.3,0.00022191,2]
[364706884,1749213053360,-440.0,0.00022191,2]
[364706885,1749213053370,-1464.36,0.00022191,2]
[364706886,1749213053379,-1629.33,0.00022191,2]
[364706887,1749213053389,-3035.51,0.00022191,2]
[364706888,1749213053398,-526.85,0.00022191,2]
[364706889,1749213053408,-599.08,0.00022191,2]
[364706890,1749213053417,-633.0,0.00022191,2]
[364706891,1749213053426,-742.14,0.00022191,2]
[364706892,1749213053436,-440.0,0.00022191,2]
[364706893,1749213053445,-1055.7,0.00022191,2]
[364706894,1749213053454,-1101.47,0.00022191,2]
[364706895,1749213053463,-453.26,0.00022191,2]
[364706896,1749213053472,-463.99,0.00022191,2]
[364706897,1749213053482,-4644.77,0.00022191,2]
[364706898,1749213053491,-440.0,0.00022191,2]
[364706899,1749213053500,-503.93,0.00022191,2]
[364706900,1749213053510,-759.25,0.00022191,2]
[364706901,1749213053551,-819.71,0.00022191,2]
[364706902,1749213053561,-574.18,0.00022191,2]
[364706903,1749213053571,-944.35,0.00022191,2]
[364706904,1749213053580,-1034.83,0.00022191,2]
[364706905,1749213053590,-335.22793176,0.00022191,2]
[364706906,1749213053600,-440.0,0.00022191,2]
[364706907,1749213053610,-857.67,0.00022191,2]
[364706908,1749213053619,-440.0,0.00022191,2]
[364706909,1749213053630,-360.0,0.00022191,2]
[364706910,1749213053639,-3064.33,0.00022191,2]
[364706911,1749213053648,-440.0,0.00022191,2]
[364706912,1749213053658,-1856.01,0.00022191,2]
[364706913,1749213053667,-440.0,0.00022191,2]
[364706914,1749213053676,-440.0,0.00022191,2]
[364706915,1749213053686,-1893.23178957,0.000222,69]
[364706916,1749213053696,-1893.23178955,0.000222,69]
[364706917,1749213053705,-1893.23178955,0.000222,69]
[364706918,1749213053714,-2904.3218691,0.0002221,6]
[364706919,1749213053725,-1882.38611826,0.00022231,2]
[364706920,1749213053734,-506.94,0.00022235,2]
[364706921,1749213053743,-1952.03440464,0.00022286,2]
[364706922,1749213053752,-2024.25967761,0.00022341,2]
[364706923,1749213053761,-2099.15728568,0.00022396,2]
[364706924,1749213053774,-2904.3218691,0.00022417,7]
[364706925,1749213053783,-2176.82610525,0.00022451,2]
[364706926,1749213053793,-445.46,0.00022465,2]
[364706927,1749213053802,-440.0,0.00022465,2]
[364706928,1749213053811,-875.22,0.00022465,2]
[364706929,1749213053820,-444.9,0.00022465,2]
[364706930,1749213053830,-440.0,0.00022465,2]
[364706931,1749213053840,-505.29,0.00022465,2]
[364706932,1749213053850,-440.0,0.00022465,2]
[364706933,1749213053860,-745.08,0.00022465,2]
[364706934,1749213053869,-2205.3,0.00022465,2]
[364706935,1749213053879,-195.62406173,0.00022465,2]
[364706936,1749213053888,-1464.36,0.00022465,2]
[364706937,1749213053898,-1629.33,0.00022465,2]
[364706938,1749213053908,-3035.51,0.00022465,2]
[364706939,1749213053917,-526.85,0.00022465,2]
[364706940,1749213053926,-599.08,0.00022465,2]
[364706941,1749213053935,-633.0,0.00022465,2]
[364706942,1749213053944,-742.14,0.00022465,2]
[364706943,1749213053954,-440.0,0.00022465,2]
[364706944,1749213053963,-1055.7,0.00022465,2]